fUSD/lending_fUSD_20260225
["ID","MTS","AMOUNT","RATE_DAILY","PERIOD"]
[406647663,1772029842387,-165769.22032719,0.00017991,2]
[406647664,1772029842631,-15915.57932847,0.00017991,2]
[406647665,1772029842643,-4390.50334977,0.00017991,2]
[406647666,1772029842656,-932.44184216,0.00017991,2]
[406647667,1772029842909,-664.30350586,0.00017991,2]
[406647668,1772029843105,-203.74320975,0.00010959,2]
[406647669,1772029843114,-371.620476,0.00017991,2]
[406647670,1772029843130,-85042.26009565,0.00017991,2]
[406647672,1772029843273,-73554.8966071,0.00017991,2]
[406647674,1772029843283,-388.0,0.00017991,2]
[406647676,1772029843293,-388.0,0.00017997,2]
[406647678,1772029843303,-1078.36665033,0.00017999,5]
[406647680,1772029843312,-1078.36665033,0.00017999,5]
[406647682,1772029843322,-1078.36665032,0.00017999,5]
[406647684,1772029843331,-155.0,0.00017999,2]
[406647687,1772029843341,-500.0,0.00017999,2]
[406647689,1772029843350,-500.0,0.00017999,2]
[406647691,1772029843360,-500.0,0.00017999,2]
[406647693,1772029843370,-500.0,0.00017999,2]
[406647696,1772029843379,-500.0,0.00017999,2]
[406647698,1772029843388,-500.0,0.00017999,2]
[406647700,1772029843398,-500.0,0.00017999,2]
[406647702,1772029843408,-442.42094836,0.00017999,2]
[406647704,1772029843417,-300.0,0.00017999,2]
[406647705,1772029843427,-300.0,0.00017999,2]
[406647706,1772029843437,-503.37240791,0.00017999,2]
[406647707,1772029843446,-300.0,0.00017999,2]
[406647708,1772029843456,-300.0,0.00017999,2]
[406647709,1772029843465,-666.0,0.00017999,2]
[406647710,1772029843475,-150.0,0.00017999,2]
[406647711,1772029843485,-150.0,0.00017999,2]
[406647712,1772029843495,-150.0,0.00017999,2]
[406647713,1772029843504,-150.0,0.00017999,2]
[406647714,1772029843513,-150.0,0.00017999,2]
[406647715,1772029843522,-150.0,0.00017999,2]
[406647716,1772029843532,-150.0,0.00017999,2]
[406647717,1772029843541,-237.33060179,0.00017999,2]
[406647718,1772029843551,-3567404.11093497,0.00018,2]
[406647719,1772029843560,-107613.23130189,0.00018,2]
[406647720,1772029843570,-1481892.52268539,0.00018,2]
[406647721,1772029843583,-2739.24406191,0.00018,2]
[406647722,1772029843594,-6485.84025894,0.00018,2]
[406647723,1772029843606,-4042.45014242,0.00018,2]
[406647724,1772029843892,-500.0,8.219e-05,2]
[406647725,1772029843903,-500.0,8.493e-05,2]
[406647726,1772029843912,-500.0,8.767e-05,2]
[406647727,1772029843922,-2456.0,0.00010348,2]
[406647728,1772029843932,-2456.0,0.00013348,2]
[406647729,1772029843941,-9943.67403006,0.00014942,2]
[406647730,1772029843950,-2456.0,0.00016348,2]
[406647731,1772029843960,-151.0,0.00017991,2]
[406647732,1772029843970,-259.38641323,0.00017991,2]
[406647733,1772029843980,-580634.85672995,0.00018,2]
[406647734,1772029843994,-2548.02366379,0.00018,2]
[406647735,1772029844005,-858.87950471,0.00018,2]
[406647736,1772029844070,-6588.82135755,0.00018,2]
[406647737,1772029844085,-1658794.78724752,0.00018,2]
[406647740,1772029846210,-2129.39662644,0.0001671,2]
[406647741,1772029846246,-772.66352435,0.0001671,2]
[406647742,1772029846256,-244.16794036,0.00018,2]
[406647743,1772029846268,-954.67114887,0.00018,2]
[406647744,1772029846279,-999.4796696,0.00018,2]
[406647745,1772029846513,-1290.88419414,0.00018,2]
[406647746,1772029846525,-310.25882034,0.00018,2]
[406647747,1772029846862,-321.3074,0.00018,2]
[406647750,1772029896825,193.28152692,6.572e-05,2]
[406647751,1772029920205,-1078.36665033,7.129e-05,2]
[406647752,1772029920240,-48921.63334967,7.13e-05,2]
[406647753,1772029970329,-500.0,6.873e-05,2]
[406647754,1772029970354,-300.0,7.129e-05,2]
[406647755,1772029970386,-29200.0,7.13e-05,2]
[406647849,1772030766627,3977.15160685,6.9e-05,3]
[406647850,1772030767530,8230.17999044,6.9e-05,3]
[406647851,1772030768370,11424.57772193,6.9e-05,3]
[406648106,1772030842531,36.48,0.00015,60]
[406648107,1772030842556,963.52,0.00015,60]
[406648108,1772030879104,400.0,0.00015,60]
[406648124,1772031015737,3977.15160685,6.8e-05,3]
[406648125,1772031016606,8230.17999044,6.8e-05,3]
[406648134,1772031031428,-200.0,6.8e-05,2]
[406648135,1772031031438,-209.0,6.8e-05,2]
[406648136,1772031031448,-250.0,6.818e-05,2]
[406648137,1772031031458,-250.0,6.849e-05,2]
[406648138,1772031031467,-1200.0,6.871e-05,2]
[406648139,1772031031477,-300.0,6.872e-05,2]
[406648140,1772031031487,-1200.0,6.872e-05,2]
[406648141,1772031031496,-500.0,6.873e-05,2]
[406648142,1772031031506,-532.01941831,6.873e-05,2]
[406648143,1772031031515,-502.07392204,6.873e-05,2]
[406648144,1772031031525,-500.0,6.873e-05,2]
[406648145,1772031031534,-500.0,6.873e-05,2]
[406648146,1772031031544,-514.56546432,6.873e-05,2]
[406648147,1772031031553,-500.0,6.873e-05,2]
[406648148,1772031031563,-500.0,6.873e-05,2]
[406648149,1772031031573,-500.0,6.873e-05,2]
[406648150,1772031031582,-500.0,6.873e-05,2]
[406648151,1772031031591,-577.7227958,6.873e-05,2]
[406648152,1772031031601,-1423.323,6.889e-05,2]
[406648153,1772031031610,-168.947,6.889e-05,2]
[406648154,1772031031620,-500.0,6.9e-05,2]
[406648155,1772031031629,-162.47658059,6.929e-05,2]
[406648156,1772031031639,-247.94664692,6.929e-05,2]
[406648157,1772031031648,-500.0,6.929e-05,2]
[406648158,1772031031657,-500.0,6.929e-05,2]
[406648159,1772031031667,-500.0,6.929e-05,2]
[406648160,1772031031676,-500.0,6.929e-05,2]
[406648161,1772031031685,-500.0,6.929e-05,2]
[406648162,1772031031695,-500.0,6.929e-05,2]
[406648164,1772031031704,-500.0,6.929e-05,2]
[406648166,1772031031713,-500.0,6.929e-05,2]
[406648168,1772031031722,-500.0,6.929e-05,2]
[406648171,1772031031731,-500.0,6.929e-05,2]
[406648174,1772031031740,-500.0,6.929e-05,2]
[406648177,1772031031750,-500.0,6.929e-05,2]
[406648180,1772031031759,-500.0,6.929e-05,2]
[406648182,1772031031768,-500.0,6.929e-05,2]
[406648184,1772031031777,-214.75726431,6.929e-05,2]
[406648187,1772031031786,-500.0,6.929e-05,2]
[406648190,1772031031795,-500.0,6.929e-05,2]
[406648193,1772031031804,-500.0,6.929e-05,2]
[406648196,1772031031813,-500.0,6.929e-05,2]
[406648199,1772031031822,-150.0,6.929e-05,2]
[406648201,1772031031832,-37693.55135246,6.93e-05,2]
[406648203,1772031031844,-2369.22227224,6.93e-05,2]
[406648206,1772031031856,-457.76704283,6.93e-05,2]
[406648208,1772031031867,-1848.75756851,6.93e-05,2]
[406648210,1772031031878,-161057.27796833,6.93e-05,2]
[406648212,1772031031888,-40114.32376915,6.93e-05,2]
[406648214,1772031031899,-1543.57054066,6.93e-05,2]
[406648233,1772031032079,-793.29285291,6.93e-05,2]
[406648234,1772031032092,-469.17841978,6.93e-05,2]
[406648235,1772031032102,-2349.93978558,6.93e-05,2]
[406648236,1772031032114,-2249.87872731,6.93e-05,2]
[406648243,1772031037420,-308.5174995,6.93e-05,2]
[406648247,1772031037513,-35080.45007758,6.93e-05,2]
[406648248,1772031037524,-1820.9832155,6.93e-05,2]
[406648249,1772031037535,-1250.0,6.93e-05,2]
[406648250,1772031037605,-903.93718342,6.93e-05,2]
[406648254,1772031039689,-1902.07,6.93e-05,2]
[406648255,1772031039784,-907.42005672,6.93e-05,2]
[406648256,1772031039795,-801.54783843,6.93e-05,2]
[406648257,1772031039821,-4154.08136312,6.93e-05,2]
[406648258,1772031039833,-732.18335078,6.93e-05,2]
[406648259,1772031039844,-1072.40892871,6.93e-05,2]
[406648260,1772031040022,-443426.41186011,6.93e-05,2]
[406648261,1772031040033,-84938.51072932,6.93e-05,2]
[406648262,1772031040045,-773.27440518,6.93e-05,2]
[406648263,1772031040056,-1242.29081829,6.93e-05,2]
[406648264,1772031040067,-3121.89733417,6.93e-05,2]
[406648265,1772031040078,-6633.13592568,6.93e-05,2]
[406648266,1772031040090,-665.46134885,6.93e-05,2]
[406648267,1772031040101,-336.14931613,6.93e-05,2]
[406648456,1772031043874,-1158982.50844875,6.93e-05,2]
[406648458,1772031043885,-700.0,7e-05,2]
[406648459,1772031043895,-150.99,7.03e-05,2]
[406648460,1772031043904,-9999.99,7.03e-05,2]
[406648461,1772031043914,-299.99,7.03e-05,2]
[406648462,1772031043923,-150.99,7.03e-05,2]
[406648463,1772031043933,-372.9,7.03e-05,2]
[406648464,1772031043942,-510.4769589,7.421e-05,2]
[406648465,1772031043952,-1000.0,7.421e-05,2]
[406648466,1772031043962,-1000.0,7.421e-05,2]
[406648467,1772031043972,-250.0,7.48e-05,2]
[406648468,1772031043981,-5000.0,7.48e-05,2]
[406648469,1772031043991,-1680.0,7.558e-05,2]
[406648470,1772031044000,-255.0,7.622e-05,2]
[406648471,1772031044010,-753.89,7.841e-05,2]
[406648472,1772031044020,-500.0,7.841e-05,2]
[406648473,1772031044030,-1600.0,7.841e-05,2]
[406648474,1772031044040,-2466.07,7.841e-05,2]
[406648475,1772031044049,-200.0,7.841e-05,2]
[406648476,1772031044061,-210.17,7.841e-05,2]
[406648477,1772031044071,-41013.141306,7.945e-05,2]
[406648478,1772031044080,-166.66,8.077e-05,2]
[406648479,1772031044090,-7326.877128,8.178e-05,2]
[406648480,1772031044100,-500.0,8.219e-05,2]
[406648481,1772031044109,-500.0,8.219e-05,2]
[406648482,1772031044119,-500.0,8.219e-05,2]
[406648483,1772031044129,-500.0,8.219e-05,2]
[406648484,1772031044138,-500.0,8.219e-05,2]
[406648487,1772031044148,-180.45567265,8.219e-05,2]
[406648490,1772031044158,-500.0,8.219e-05,2]
[406648493,1772031044170,-1000.0,8.219e-05,2]
[406648496,1772031044180,-500.0,8.219e-05,2]
[406648500,1772031044190,-1871.0,8.314e-05,2]
[406648504,1772031044199,-166.66,8.343e-05,2]
[406648507,1772031044210,-500.0,8.493e-05,2]
[406648509,1772031044220,-166.66,8.61e-05,2]
[406648510,1772031044229,-500.0,8.767e-05,2]
[406648511,1772031044240,-1600.0,8.822e-05,2]
[406648512,1772031044250,-166.66,8.876e-05,2]
[406648513,1772031044260,-250.0,8.985e-05,2]
[406648514,1772031044269,-500.0,9.041e-05,2]
[406648515,1772031044279,-166.66,9.143e-05,2]
[406648516,1772031044288,-1000.0,9.247e-05,2]
[406648517,1772031044298,-500.0,9.315e-05,2]
[406648518,1772031044308,-166.66,9.41e-05,2]
[406648519,1772031044317,-155.0,9.52e-05,2]
[406648520,1772031044327,-32879.9337,9.521e-05,2]
[406648521,1772031044336,-1000.0,9.521e-05,2]
[406648522,1772031044346,-500.0,9.589e-05,2]
[406648523,1772031044356,-9999.99,9.67e-05,2]
[406648524,1772031044365,-1600.0,9.802e-05,2]
[406648525,1772031044375,-158.41776,9.987e-05,2]
[406648526,1772031044384,-1000.0,0.00010274,2]
[406648527,1772031044394,-1600.0,0.00010782,2]
[406648528,1772031044403,-3789.16746566,0.000109,2]
[406648529,1772031044412,-3789.1674656,0.000109,2]
[406648530,1772031044421,-3789.1674656,0.000109,2]
[406648531,1772031044430,-150.0,0.00010959,2]
[406648532,1772031044440,-166.66,0.00010959,2]
[406648533,1772031044450,-166.66,0.00011068,2]
[406648534,1772031044459,-3011.46858596,0.00011099,2]
[406648535,1772031044469,-3011.46858589,0.00011099,2]
[406648536,1772031044479,-3011.46858589,0.00011099,2]
[406648537,1772031044489,-3011.46858589,0.00011099,2]
[406648538,1772031044498,-332.64912449,0.00011099,2]
[406648539,1772031044508,-332.64912442,0.00011099,2]
[406648540,1772031044517,-332.64912442,0.00011099,2]
[406648541,1772031044527,-332.64912442,0.00011099,2]
[406648542,1772031044537,-166.66,0.00011178,2]
[406648543,1772031044546,-166.66,0.00011288,2]
[406648544,1772031044556,-1000.0,0.00011301,2]
[406648546,1772031044566,-166.66,0.00011397,2]
[406648548,1772031044577,-1040.0,0.00011458,2]
[406648549,1772031044586,-618.0,0.00011458,2]
[406648550,1772031044596,-3497.0,0.00011458,2]
[406648551,1772031044605,-1340.0,0.00011458,2]
[406648552,1772031044615,-150.0,0.00011458,2]
[406648553,1772031044624,-1277.0,0.00011458,2]
[406648554,1772031044634,-413.0,0.00011458,2]
[406648555,1772031044644,-5405.0,0.00011458,2]
[406648556,1772031044655,-5982.0,0.00011458,2]
[406648557,1772031044664,-166.66,0.00011507,2]
[406648559,1772031044673,-3789.1674656,0.00011614,2]
[406648561,1772031044683,-10000.0,0.0001166,2]
[406648563,1772031044692,-1600.0,0.00011762,2]
[406648564,1772031044702,-332.64912442,0.00011789,2]
[406648565,1772031044712,-3011.46858589,0.00011789,2]
[406648566,1772031044722,-1000.0,0.00012329,2]
[406648567,1772031044731,-190.101312,0.00012483,2]
[406648568,1772031044740,-300.0,0.0001274,4]
[406648569,1772031044750,-332.64912442,0.00013011,2]
[406648570,1772031044759,-3011.46858589,0.00013011,2]
[406648571,1772031044768,-3789.1674656,0.00013186,2]
[406648572,1772031044777,-173.91437885,0.00013341,2]
[406648573,1772031044787,-500.0,0.00013698,2]
[406648574,1772031044796,-387.31685331,0.00013698,2]
[406648575,1772031044805,-500.0,0.00013698,2]
[406648576,1772031044817,-500.0,0.00013698,2]
[406648577,1772031044826,-500.0,0.00013698,2]
[406648578,1772031044835,-500.0,0.00013698,2]
[406648579,1772031044844,-453.06341333,0.00013698,2]
[406648580,1772031044854,-500.0,0.00013698,2]
[406648581,1772031044863,-500.0,0.00013698,2]
[406648582,1772031044873,-413.0,0.00013699,2]
[406648583,1772031044883,-332.64912442,0.00014233,2]
[406648584,1772031044892,-3011.46858589,0.00014233,2]
[406648585,1772031044903,-413.0,0.00014384,2]
[406648586,1772031044912,-1040.0,0.00014458,2]
[406648587,1772031044922,-618.0,0.00014458,2]
[406648588,1772031044931,-3497.0,0.00014458,2]
[406648589,1772031044940,-1340.0,0.00014458,2]
[406648590,1772031044950,-1277.0,0.00014458,2]
[406648591,1772031044959,-413.0,0.00014458,2]
[406648592,1772031044969,-5405.0,0.00014458,2]
[406648593,1772031044978,-5982.0,0.00014458,2]
[406648594,1772031044988,-3789.1674656,0.00014757,2]
[406648595,1772031044997,-250.0,0.00015,2]
[406648596,1772031045007,-505.0,0.00015,2]
[406648597,1772031045016,-413.0,0.00015068,2]
[406648598,1772031045025,-1500.0,0.00015358,2]
[406648599,1772031045035,-332.64912442,0.00015456,2]
[406648600,1772031045044,-3011.46858589,0.00015456,2]
[406648601,1772031045053,-413.0,0.00015753,2]
[406648602,1772031045065,-500.0,0.00016199,2]
[406648603,1772031045074,-558.2352126,0.00016199,2]
[406648604,1772031045083,-3789.1674656,0.00016329,2]
[406648605,1772031045094,-500.0,0.00016356,2]
[406648606,1772031045104,-500.0,0.00016356,2]
[406648607,1772031045113,-1000.0,0.00016356,2]
[406648608,1772031045123,-413.0,0.00016438,2]
[406648609,1772031045132,-158.41776,0.00016644,7]
[406648610,1772031045142,-277.35679052,0.00016667,2]
[406648611,1772031045151,-332.64912442,0.00016678,2]
[406648612,1772031045161,-3011.46858589,0.00016678,2]
[406648613,1772031045184,-1107.2,0.00016712,2]
[406648614,1772031045195,-505.0,0.00016806,3]
[406648615,1772031045205,-238.84865423,0.00016983,2]
[406648616,1772031045215,-1107.2,0.00016986,2]
[406648617,1772031045225,-300.0,0.00017,2]
[406648618,1772031045235,-500.0,0.00017,2]
[406648619,1772031045245,-500.0,0.00017,2]
[406648620,1772031045255,-500.0,0.00017,2]
[406648621,1772031045265,-150.0,0.000171,7]
[406648622,1772031045275,-658.40784,0.000171,2]
[406648623,1772031045285,-350.0,0.00017147,2]
[406648624,1772031045295,-1000.0,0.000172,6]
[406648625,1772031045304,-287.61899177,0.00017215,2]
[406648626,1772031045316,-1107.2,0.0001726,2]
[406648629,1772031045326,-1300.0,0.000173,6]
[406648632,1772031045336,-350.0,0.00017309,2]
[406648633,1772031045346,-194.0,0.00017364,2]
[406648634,1772031045356,-200.0,0.000174,6]
[406648635,1772031045366,-350.0,0.00017437,2]
[406648636,1772031045377,-1040.0,0.00017458,2]
[406648637,1772031045387,-618.0,0.00017458,2]
[406648638,1772031045396,-3497.0,0.00017458,2]
[406648639,1772031045406,-1340.0,0.00017458,2]
[406648640,1772031045415,-1277.0,0.00017458,2]
[406648641,1772031045425,-413.0,0.00017458,2]
[406648642,1772031045435,-5405.0,0.00017458,2]
[406648643,1772031045444,-4816.589,0.00017458,2]
[406648644,1772031045454,-200.0,0.000175,6]
[406648645,1772031045464,-161.12,0.00017509,2]
[406648646,1772031045474,-1107.2,0.00017534,2]
[406648647,1772031045487,-1000.0,0.00017555,2]
[406648648,1772031045497,-409.29299491,0.00017579,2]
[406648649,1772031045507,-200.0,0.000176,6]
[406648650,1772031045517,-1032.0757862,0.0001764,2]
[406648651,1772031045527,-300.0,0.00017686,5]
[406648652,1772031045536,-1324.0,0.00017698,2]
[406648653,1772031045547,-500.0,0.00017698,2]
[406648654,1772031045556,-150.0,0.00017698,2]
[406648655,1772031045568,-500.0,0.00017698,2]
[406648656,1772031045579,-200.0,0.000177,6]
[406648657,1772031045589,-1000.0,0.00017726,7]
[406648658,1772031045599,-1000.0,0.00017736,2]
[406648659,1772031045609,-1324.0,0.00017753,2]
[406648660,1772031045619,-500.0,0.00017753,2]
[406648661,1772031045629,-150.0,0.00017753,2]
[406648662,1772031045638,-500.0,0.00017753,2]
[406648663,1772031045648,-1000.0,0.00017753,2]
[406648664,1772031045659,-298.26089446,0.00017763,2]
[406648665,1772031045669,-1000.0,0.00017765,2]
[406648666,1772031045683,-1000.0,0.00017766,2]
[406648667,1772031045692,-1000.0,0.00017771,2]
[406648668,1772031045702,-1000.0,0.00017782,2]
[406648669,1772031045712,-1000.0,0.00017782,2]
[406648670,1772031045721,-201.59337925,0.000178,3]
[406648671,1772031045731,-817.0,0.000178,6]
[406648672,1772031045742,-1000.0,0.00017805,2]
[406648673,1772031045752,-1000.0,0.00017805,2]
[406648674,1772031045762,-1324.0,0.00017808,2]
[406648675,1772031045771,-219.84961923,0.00017808,2]
[406648677,1772031045780,-150.0,0.00017808,2]
[406648678,1772031045790,-500.0,0.00017808,2]
[406648681,1772031045800,-1107.2,0.00017808,2]
[406648698,1772031045995,-500.0,0.00017808,2]
[406648700,1772031046005,-571.0250116,0.00017808,2]
[406648703,1772031046018,-571.0250116,0.00017808,2]
[406648705,1772031046027,-571.0250116,0.00017808,2]
[406648707,1772031046037,-571.0250116,0.00017808,2]
[406648709,1772031046047,-571.0250116,0.00017808,2]
[406648711,1772031046056,-571.0250116,0.00017808,2]
[406648713,1772031046070,-571.0250116,0.00017808,2]
[406648715,1772031046080,-571.0250116,0.00017808,2]
[406648717,1772031046089,-571.0250116,0.00017808,2]
[406648718,1772031046099,-571.0250116,0.00017808,2]
[406648719,1772031046108,-571.0250116,0.00017808,2]
[406648721,1772031046118,-571.0250116,0.00017808,2]
[406648723,1772031046127,-571.0250116,0.00017808,2]
[406648725,1772031046136,-571.0250116,0.00017808,2]
[406648727,1772031046146,-571.0250116,0.00017808,2]
[406648729,1772031046156,-571.0250116,0.00017808,2]
[406648731,1772031046168,-571.0250116,0.00017808,2]
[406648733,1772031046179,-599.57626219,0.00017808,2]
[406648734,1772031046188,-599.57626219,0.00017808,2]
[406648735,1772031046198,-599.57626219,0.00017808,2]
[406648737,1772031046207,-599.57626219,0.00017808,2]
[406648739,1772031046221,-599.57626219,0.00017808,2]
[406648740,1772031046231,-599.57626219,0.00017808,2]
[406648741,1772031046241,-599.57626219,0.00017808,2]
[406648742,1772031046250,-599.57626219,0.00017808,2]
[406648743,1772031046260,-631.55366284,0.00017808,2]
[406648744,1772031046270,-631.55366284,0.00017808,2]
[406648745,1772031046279,-631.55366284,0.00017808,2]
[406648746,1772031046289,-1701.68332,0.0001782,2]
[406648747,1772031046299,-1701.68332,0.0001782,2]
[406648748,1772031046311,-1000.0,0.00017847,2]
[406648749,1772031046320,-201.59337924,0.0001785,3]
[406648750,1772031046330,-350.0,0.00017854,2]
[406648751,1772031046340,-1000.0,0.00017857,2]
[406648752,1772031046350,-1000.0,0.00017857,2]
[406648753,1772031046361,-1000.0,0.00017859,2]
[406648754,1772031046370,-1000.0,0.00017862,2]
[406648755,1772031046380,-1324.0,0.00017862,2]
[406648756,1772031046390,-229.08432386,0.00017862,2]
[406648757,1772031046399,-500.0,0.00017862,2]
[406648758,1772031046408,-500.0,0.00017863,2]
[406648759,1772031046421,-1000.0,0.00017864,2]
[406648760,1772031046430,-1000.0,0.0001787,2]
[406648761,1772031046441,-1000.0,0.00017871,2]
[406648762,1772031046450,-190993.3322702,0.00017874,2]
[406648763,1772031046459,-10199.2062613,0.00017874,2]
[406648764,1772031046469,-929.6019977,0.00017874,2]
[406648765,1772031046479,-1664.900862,0.00017874,2]
[406648766,1772031046488,-104260.1042005,0.00017874,2]
[406648767,1772031046498,-350.0,0.00017881,2]
[406648768,1772031046508,-25000.0,0.00017891,3]
[406648769,1772031046517,-500.0,0.00017898,2]
[406648770,1772031046528,-13900.8954666,0.000179,2]
[406648771,1772031046538,-10000.0,0.000179,2]
[406648772,1772031046548,-25000.0,0.000179,3]
[406648773,1772031046558,-25000.0,0.000179,3]
[406648774,1772031046569,-173.91437885,0.000179,3]
[406648775,1772031046578,-201.59337924,0.000179,3]
[406648776,1772031046588,-3789.1674656,0.000179,2]
[406648777,1772031046598,-332.64912442,0.000179,2]
[406648778,1772031046609,-3011.46858589,0.000179,2]
[406648779,1772031046619,-7916.0,0.000179,2]
[406648780,1772031046628,-1324.0,0.00017917,2]
[406648781,1772031046638,-500.0,0.00017917,2]
[406648782,1772031046648,-500.0,0.00017918,2]
[406648783,1772031046657,-1000.0,0.00017922,2]
[406648784,1772031046668,-1000.0,0.00017925,2]
[406648785,1772031046677,-1000.0,0.00017937,2]
[406648786,1772031046687,-1000.0,0.00017943,2]
[406648787,1772031046696,-1000.0,0.00017944,2]
[406648788,1772031046706,-1000.0,0.00017955,2]
[406648789,1772031046716,-1000.0,0.00017956,2]
[406648790,1772031046725,-1000.0,0.00017971,2]
[406648791,1772031046735,-1324.0,0.00017972,2]
[406648792,1772031046744,-500.0,0.00017972,2]
[406648793,1772031046753,-500.0,0.00017972,2]
[406648794,1772031046763,-1000.0,0.00017985,2]
[406648795,1772031046773,-11291.4845833,0.00017989,2]
[406648796,1772031046782,-500.0,0.0001799,2]
[406648797,1772031046792,-1000.0,0.00017994,2]
[406648798,1772031046801,-1000.0,0.00017995,2]
[406648799,1772031046822,-1030.10231547,0.00017996,2]
[406648800,1772031046832,-151.0,0.00017998,5]
[406648801,1772031046843,-151.0,0.00017998,5]
[406648802,1772031046853,-151.0,0.00017998,5]
[406648803,1772031046863,-279.9045709,0.00017998,5]
[406648804,1772031046873,-151.0,0.00017998,5]
[406648805,1772031046883,-151.0,0.00017998,5]
[406648806,1772031046894,-151.0,0.00017998,5]
[406648807,1772031046903,-151.0,0.00017998,5]
[406648808,1772031046913,-151.0,0.00017998,5]
[406648809,1772031046923,-157.4360604,0.00017998,5]
[406648810,1772031046932,-373.19905658,0.00017998,5]
[406648811,1772031046943,-693.3919763,0.00017998,5]
[406648812,1772031046953,-719.04747942,0.00017998,5]
[406648813,1772031046962,-151.0,0.00017998,5]
[406648814,1772031046971,-745.65223616,0.00017998,5]
[406648815,1772031046981,-151.0,0.00017998,5]
[406648816,1772031046991,-151.0,0.00017998,5]
[406648817,1772031047001,-773.2413689,0.00017998,5]
[406648818,1772031047011,-151.0,0.00017998,5]
[406648819,1772031047021,-801.85129955,0.00017998,5]
[406648820,1772031047031,-151.0,0.00017998,5]
[406648821,1772031047041,-831.51979763,0.00017998,5]
[406648822,1772031047051,-151.0,0.00017998,5]
[406648823,1772031047064,-862.28603014,0.00017998,5]
[406648824,1772031047074,-151.0,0.00017998,5]
[406648825,1772031047084,-894.19061326,0.00017998,5]
[406648826,1772031047094,-927.27566595,0.00017998,5]
[406648827,1772031047104,-151.0,0.00017998,5]
[406648828,1772031047115,-961.58486559,0.00017998,5]
[406648829,1772031047126,-151.0,0.00017998,5]
[406648830,1772031047137,-151.0,0.00017998,5]
[406648831,1772031047147,-997.16350561,0.00017998,5]
[406648832,1772031047157,-151.0,0.00017998,5]
[406648833,1772031047171,-500.0,0.00017998,5]
[406648834,1772031047181,-500.0,0.00017998,5]
[406648835,1772031047191,-500.0,0.00017998,5]
[406648836,1772031047207,-500.0,0.00017998,5]
[406648837,1772031047217,-500.0,0.00017998,5]
[406648838,1772031047227,-500.0,0.00017998,5]
[406648839,1772031047239,-500.0,0.00017998,5]
[406648840,1772031047249,-500.0,0.00017998,5]
[406648841,1772031047259,-500.0,0.00017998,5]
[406648842,1772031047269,-500.0,0.00017998,5]
[406648843,1772031047279,-500.0,0.00017998,5]
[406648844,1772031047289,-1078.36665033,0.00017999,5]
[406648845,1772031047299,-1078.36665032,0.00017999,5]
[406648846,1772031047313,-155.0,0.00017999,2]
[406648847,1772031047326,-300.0,0.00017999,2]
[406648848,1772031047336,-500.0,0.00017999,2]
[406648849,1772031047346,-500.0,0.00017999,2]
[406648850,1772031047357,-442.42094836,0.00017999,2]
[406648851,1772031047369,-282.30968536,0.00017999,2]
[406648852,1772031047379,-300.0,0.00017999,2]
[406648853,1772031047390,-300.0,0.00017999,2]
[406648854,1772031047400,-666.0,0.00017999,2]
[406648855,1772031047410,-300.0,0.00017999,2]
[406648856,1772031047420,-666.0,0.00017999,2]
[406648857,1772031047430,-150.0,0.00017999,2]
[406648858,1772031047440,-150.0,0.00017999,2]
[406648859,1772031047451,-150.0,0.00017999,2]
[406648860,1772031047461,-150.0,0.00017999,2]
[406648861,1772031047471,-150.0,0.00017999,2]
[406648862,1772031047480,-150.0,0.00017999,2]
[406648863,1772031047490,-150.0,0.00017999,2]
[406648864,1772031047500,-237.33060179,0.00017999,2]
[406648865,1772031047510,-3123250.52589882,0.00018,2]
[406648866,1772031047520,-1195.7726719,0.00018,2]
[406648867,1772031047530,-1701244.51957623,0.00018,2]
[406648868,1772031047791,-1790.99786457,0.00018,2]